{"text_format":"3","workbook":"xlsx","n_sheets":1,"sheets":["Протокол ШЭ ВОШ по предмету"],"not_rendered":{"external_links":1,"defined_names":1},"read":"whole","date_system":"1900"}

{"sheet":"Протокол ШЭ ВОШ по предмету","index":0,"n_rows":75,"n_cols":15,"rows_kept":75}
["№","Фамилия","Имя","Отчество","Дата рождения","Пол","Участник с ОВЗ (да/нет)","Класс обучения","Класс участия","Балл","Максимальный балл","Статус","Призёр муниципального этапа прошлого года","ФИО учителя","Место работы учителя"]
[1,"Клещенко","Карина","Григорьевна","2012-07-12","Ж","нет",4,4,25,75,"Участник","нет","Хусаинова Энже Абрамовна","Муниципальное бюджетное общеобразовательное учреждение \"КСОШ №2\" НМР Республики Татарстан"]
[2,"Краюхин","Дмитрий","Евгеньевич","2012-10-08","М","нет",4,4,19,75,"участник","нет","Хусаинова Энже Абрамовна","Муниципальное бюджетное общеобразовательное учреждение \"КСОШ №2\" НМР Республики Татарстан"]
[3,"Харина","Марина","Николаевна","2012-06-02","Ж","нет",4,4,26,75,"участник","нет","Хусаинова Энже Абрамовна","Муниципальное бюджетное общеобразовательное учреждение \"КСОШ №2\" НМР Республики Татарстан"]
[4,"Орехов ","Денис","Михайлович","2012-05-05","М","нет",4,4,28,75,"участник","нет","Хусаинова Энже Абрамовна","Муниципальное бюджетное общеобразовательное учреждение \"КСОШ №2\" НМР Республики Татарстан"]
[5,"Окунев","Александр","Олегович","2012-07-27","М","нет",4,4,35,75,"призер","нет","Хусаинова Энже Абрамовна","Муниципальное бюджетное общеобразовательное учреждение \"КСОШ №2\" НМР Республики Татарстан"]
[6,"Потапов","Илья","Владимирович","2012-08-03","М","нет",4,4,32,75,"участник","нет","Хусаинова Энже Абрамовна","Муниципальное бюджетное общеобразовательное учреждение \"КСОШ №2\" НМР Республики Татарстан"]
[7,"Чурашова","Ксения","Дмитриевна","2012-07-27","Ж","нет",4,4,40,75,"призёр","нет","Хусаинова Энже Абрамовна","Муниципальное бюджетное общеобразовательное учреждение \"КСОШ №2\" НМР Республики Татарстан"]
[8,{"$f":"'[1]Протокол ШЭ ВОШ по предмету'!B45","v":"Косс"},{"$f":"'[1]Протокол ШЭ ВОШ по предмету'!C45","v":"Виктория"},{"$f":"'[1]Протокол ШЭ ВОШ по предмету'!D45","v":"Викторовна"},{"$f":"'[1]Протокол ШЭ ВОШ по предмету'!E45","v":"2011-05-18"},"Ж",{"$f":"'[1]Протокол ШЭ ВОШ по предмету'!G45","v":"нет"},{"$f":"'[1]Протокол ШЭ ВОШ по предмету'!H45","v":5},{"$f":"'[1]Протокол ШЭ ВОШ по предмету'!I45","v":5},18,{"$f":"'[1]Протокол ШЭ ВОШ по предмету'!K45","v":70},{"$f":"'[1]Протокол ШЭ ВОШ по предмету'!L45","v":"Участник"},{"$f":"'[1]Протокол ШЭ ВОШ по предмету'!M45","v":"нет"},{"$f":"'[1]Протокол ШЭ ВОШ по предмету'!N45","v":"Хайруллина Лилия Аркадьевна"},"Муниципальное бюджетное общеобразовательное учреждение \"КСОШ №2\" НМР Республики Татарстан"]
[9,{"$f":"'[1]Протокол ШЭ ВОШ по предмету'!B46","v":"Равилова"},{"$f":"'[1]Протокол ШЭ ВОШ по предмету'!C46","v":"Регина"},{"$f":"'[1]Протокол ШЭ ВОШ по предмету'!D46","v":"Рафаэлевна"},{"$f":"'[1]Протокол ШЭ ВОШ по предмету'!E46","v":"2011-09-03"},"Ж",{"$f":"'[1]Протокол ШЭ ВОШ по предмету'!G46","v":"нет"},{"$f":"'[1]Протокол ШЭ ВОШ по предмету'!H46","v":5},{"$f":"'[1]Протокол ШЭ ВОШ по предмету'!I46","v":5},23,{"$f":"'[1]Протокол ШЭ ВОШ по предмету'!K46","v":70},{"$f":"'[1]Протокол ШЭ ВОШ по предмету'!L46","v":"Участник"},{"$f":"'[1]Протокол ШЭ ВОШ по предмету'!M46","v":"нет"},{"$f":"'[1]Протокол ШЭ ВОШ по предмету'!N46","v":"Хайруллина Лилия Аркадьевна"},"Муниципальное бюджетное общеобразовательное учреждение \"КСОШ №2\" НМР Республики Татарстан"]
[10,{"$f":"'[1]Протокол ШЭ ВОШ по предмету'!B47","v":"Уразайкина"},{"$f":"'[1]Протокол ШЭ ВОШ по предмету'!C47","v":"Яна"},"Николаевна",{"$f":"'[1]Протокол ШЭ ВОШ по предмету'!E47","v":"2011-06-20"},"Ж",{"$f":"'[1]Протокол ШЭ ВОШ по предмету'!G47","v":"нет"},{"$f":"'[1]Протокол ШЭ ВОШ по предмету'!H47","v":5},{"$f":"'[1]Протокол ШЭ ВОШ по предмету'!I47","v":5},30,{"$f":"'[1]Протокол ШЭ ВОШ по предмету'!K47","v":70},{"$f":"'[1]Протокол ШЭ ВОШ по предмету'!L47","v":"Участник"},{"$f":"'[1]Протокол ШЭ ВОШ по предмету'!M47","v":"нет"},{"$f":"'[1]Протокол ШЭ ВОШ по предмету'!N47","v":"Хайруллина Лилия Аркадьевна"},"Муниципальное бюджетное общеобразовательное учреждение \"КСОШ №2\" НМР Республики Татарстан"]
[11,{"$f":"'[1]Протокол ШЭ ВОШ по предмету'!B48","v":"Завьялова"},{"$f":"'[1]Протокол ШЭ ВОШ по предмету'!C48","v":"Кира"},"Владимировна","2011-03-15","Ж",{"$f":"'[1]Протокол ШЭ ВОШ по предмету'!G48","v":"нет"},{"$f":"'[1]Протокол ШЭ ВОШ по предмету'!H48","v":5},{"$f":"'[1]Протокол ШЭ ВОШ по предмету'!I48","v":5},32,{"$f":"'[1]Протокол ШЭ ВОШ по предмету'!K48","v":70},{"$f":"'[1]Протокол ШЭ ВОШ по предмету'!L48","v":"Участник"},{"$f":"'[1]Протокол ШЭ ВОШ по предмету'!M48","v":"нет"},{"$f":"'[1]Протокол ШЭ ВОШ по предмету'!N48","v":"Хайруллина Лилия Аркадьевна"},"Муниципальное бюджетное общеобразовательное учреждение \"КСОШ №2\" НМР Республики Татарстан"]
[12,{"$f":"'[1]Протокол ШЭ ВОШ по предмету'!B49","v":"Плотникова "},{"$f":"'[1]Протокол ШЭ ВОШ по предмету'!C49","v":"Кира"},"Романовна","2011-05-18","Ж",{"$f":"'[1]Протокол ШЭ ВОШ по предмету'!G49","v":"нет"},{"$f":"'[1]Протокол ШЭ ВОШ по предмету'!H49","v":5},{"$f":"'[1]Протокол ШЭ ВОШ по предмету'!I49","v":5},15,{"$f":"'[1]Протокол ШЭ ВОШ по предмету'!K49","v":70},{"$f":"'[1]Протокол ШЭ ВОШ по предмету'!L49","v":"Участник"},{"$f":"'[1]Протокол ШЭ ВОШ по предмету'!M49","v":"нет"},{"$f":"'[1]Протокол ШЭ ВОШ по предмету'!N49","v":"Хайруллина Лилия Аркадьевна"},"Муниципальное бюджетное общеобразовательное учреждение \"КСОШ №2\" НМР Республики Татарстан"]
[13,"Останин","Дмитрий","Васильевич","2010-10-29","М","нет",5,5,32,70,"призёр","нет","Гараева Магинур Абрамовна","Муниципальное бюджетное общеобразовательное учреждение \"КСОШ №2\" НМР Республики Татарстан"]
[14,"Пономарев ","Глеб","Евгеньевич","2011-09-10","М","нет",5,5,24,70,"Участник","нет","Хусаинова Энже Абрамовна","Муниципальное бюджетное общеобразовательное учреждение \"КСОШ №2\" НМР Республики Татарстан"]
[15,"Филиппов","Дмитрий","Сергеевич","2011-09-29","М","нет",5,5,15,70,"участник","нет","Гараева Магинур Абрамовна","Муниципальное бюджетное общеобразовательное учреждение \"КСОШ №2\" НМР Республики Татарстан"]
[16,"Шляхтина","Ирина","Сергеевна","2011-10-04","Ж","нет",5,5,24,70,"участник","нет","Хусаинова Энже Абрамовна","Муниципальное бюджетное общеобразовательное учреждение \"КСОШ №2\" НМР Республики Татарстан"]
[17,"Амосова","Анастасия","Григорьевич","2011-12-07","Ж","нет",5,5,52,70,"победитель","нет","Хусаинова Энже Абрамовна","Муниципальное бюджетное общеобразовательное учреждение \"КСОШ №2\" НМР Республики Татарстан"]
[18,{"$f":"'[1]Протокол ШЭ ВОШ по предмету'!B50","v":"Черпакова"},{"$f":"'[1]Протокол ШЭ ВОШ по предмету'!C50","v":"Полина"},{"$f":"'[1]Протокол ШЭ ВОШ по предмету'!D50","v":"Евгеньевна"},{"$f":"'[1]Протокол ШЭ ВОШ по предмету'!E50","v":"2010-06-27"},"Ж",{"$f":"'[1]Протокол ШЭ ВОШ по предмету'!G50","v":"нет"},{"$f":"'[1]Протокол ШЭ ВОШ по предмету'!H50","v":6},{"$f":"'[1]Протокол ШЭ ВОШ по предмету'!I50","v":6},13,{"$f":"'[1]Протокол ШЭ ВОШ по предмету'!K50","v":54},{"$f":"'[1]Протокол ШЭ ВОШ по предмету'!L50","v":"Участник"},{"$f":"'[1]Протокол ШЭ ВОШ по предмету'!M50","v":"нет"},{"$f":"'[1]Протокол ШЭ ВОШ по предмету'!N50","v":"Хайруллина Лилия Аркадьевна"},"Муниципальное бюджетное общеобразовательное учреждение \"КСОШ №2\" НМР Республики Татарстан"]
[19,{"$f":"'[1]Протокол ШЭ ВОШ по предмету'!B51","v":"Чачакаева"},{"$f":"'[1]Протокол ШЭ ВОШ по предмету'!C51","v":"Милана"},"Николаевна",{"$f":"'[1]Протокол ШЭ ВОШ по предмету'!E51","v":"2010-09-04"},"Ж",{"$f":"'[1]Протокол ШЭ ВОШ по предмету'!G51","v":"нет"},{"$f":"'[1]Протокол ШЭ ВОШ по предмету'!H51","v":6},{"$f":"'[1]Протокол ШЭ ВОШ по предмету'!I51","v":6},16,{"$f":"'[1]Протокол ШЭ ВОШ по предмету'!K51","v":54},{"$f":"'[1]Протокол ШЭ ВОШ по предмету'!L51","v":"Участник"},{"$f":"'[1]Протокол ШЭ ВОШ по предмету'!M51","v":"нет"},{"$f":"'[1]Протокол ШЭ ВОШ по предмету'!N51","v":"Хайруллина Лилия Аркадьевна"},"Муниципальное бюджетное общеобразовательное учреждение \"КСОШ №2\" НМР Республики Татарстан"]
[20,{"$f":"'[1]Протокол ШЭ ВОШ по предмету'!B52","v":"Кармачева"},{"$f":"'[1]Протокол ШЭ ВОШ по предмету'!C52","v":"Надежда"},{"$f":"'[1]Протокол ШЭ ВОШ по предмету'!D52","v":"Павловна"},{"$f":"'[1]Протокол ШЭ ВОШ по предмету'!E52","v":"2010-06-20"},"Ж",{"$f":"'[1]Протокол ШЭ ВОШ по предмету'!G52","v":"нет"},{"$f":"'[1]Протокол ШЭ ВОШ по предмету'!H52","v":6},{"$f":"'[1]Протокол ШЭ ВОШ по предмету'!I52","v":6},21,{"$f":"'[1]Протокол ШЭ ВОШ по предмету'!K52","v":54},{"$f":"'[1]Протокол ШЭ ВОШ по предмету'!L52","v":"Участник"},{"$f":"'[1]Протокол ШЭ ВОШ по предмету'!M52","v":"нет"},{"$f":"'[1]Протокол ШЭ ВОШ по предмету'!N52","v":"Хайруллина Лилия Аркадьевна"},"Муниципальное бюджетное общеобразовательное учреждение \"КСОШ №2\" НМР Республики Татарстан"]
[21,{"$f":"'[1]Протокол ШЭ ВОШ по предмету'!B53","v":"Гильфанова"},{"$f":"'[1]Протокол ШЭ ВОШ по предмету'!C53","v":"Ландыш"},{"$f":"'[1]Протокол ШЭ ВОШ по предмету'!D53","v":"Ильдусовна"},{"$f":"'[1]Протокол ШЭ ВОШ по предмету'!E53","v":"2009-12-31"},"Ж",{"$f":"'[1]Протокол ШЭ ВОШ по предмету'!G53","v":"нет"},{"$f":"'[1]Протокол ШЭ ВОШ по предмету'!H53","v":6},{"$f":"'[1]Протокол ШЭ ВОШ по предмету'!I53","v":6},27,{"$f":"'[1]Протокол ШЭ ВОШ по предмету'!K53","v":54},"призер",{"$f":"'[1]Протокол ШЭ ВОШ по предмету'!M53","v":"нет"},{"$f":"'[1]Протокол ШЭ ВОШ по предмету'!N53","v":"Хайруллина Лилия Аркадьевна"},"Муниципальное бюджетное общеобразовательное учреждение \"КСОШ №2\" НМР Республики Татарстан"]
[22,{"$f":"'[1]Протокол ШЭ ВОШ по предмету'!B54","v":"Тябина"},{"$f":"'[1]Протокол ШЭ ВОШ по предмету'!C54","v":"Илона"},{"$f":"'[1]Протокол ШЭ ВОШ по предмету'!D54","v":"Алексеевна"},{"$f":"'[1]Протокол ШЭ ВОШ по предмету'!E54","v":"2010-05-05"},"Ж",{"$f":"'[1]Протокол ШЭ ВОШ по предмету'!G54","v":"нет"},{"$f":"'[1]Протокол ШЭ ВОШ по предмету'!H54","v":6},{"$f":"'[1]Протокол ШЭ ВОШ по предмету'!I54","v":6},21,{"$f":"'[1]Протокол ШЭ ВОШ по предмету'!K54","v":54},{"$f":"'[1]Протокол ШЭ ВОШ по предмету'!L54","v":"Участник"},{"$f":"'[1]Протокол ШЭ ВОШ по предмету'!M54","v":"нет"},{"$f":"'[1]Протокол ШЭ ВОШ по предмету'!N54","v":"Хайруллина Лилия Аркадьевна"},"Муниципальное бюджетное общеобразовательное учреждение \"КСОШ №2\" НМР Республики Татарстан"]
[23,{"$f":"'[1]Протокол ШЭ ВОШ по предмету'!B55","v":"Ярцева"},{"$f":"'[1]Протокол ШЭ ВОШ по предмету'!C55","v":"Ирина"},{"$f":"'[1]Протокол ШЭ ВОШ по предмету'!D55","v":"Александровна"},{"$f":"'[1]Протокол ШЭ ВОШ по предмету'!E55","v":"2010-01-10"},"Ж",{"$f":"'[1]Протокол ШЭ ВОШ по предмету'!G55","v":"нет"},{"$f":"'[1]Протокол ШЭ ВОШ по предмету'!H55","v":6},{"$f":"'[1]Протокол ШЭ ВОШ по предмету'!I55","v":6},18,{"$f":"'[1]Протокол ШЭ ВОШ по предмету'!K55","v":54},"победитель",{"$f":"'[1]Протокол ШЭ ВОШ по предмету'!M55","v":"нет"},{"$f":"'[1]Протокол ШЭ ВОШ по предмету'!N55","v":"Хайруллина Лилия Аркадьевна"},"Муниципальное бюджетное общеобразовательное учреждение \"КСОШ №2\" НМР Республики Татарстан"]
[24,{"$f":"'[1]Протокол ШЭ ВОШ по предмету'!B56","v":"Султанов "},{"$f":"'[1]Протокол ШЭ ВОШ по предмету'!C56","v":"Илья"},{"$f":"'[1]Протокол ШЭ ВОШ по предмету'!D56","v":"Альбертович"},{"$f":"'[1]Протокол ШЭ ВОШ по предмету'!E56","v":"2010-08-02"},"М",{"$f":"'[1]Протокол ШЭ ВОШ по предмету'!G56","v":"нет"},{"$f":"'[1]Протокол ШЭ ВОШ по предмету'!H56","v":6},{"$f":"'[1]Протокол ШЭ ВОШ по предмету'!I56","v":6},18,{"$f":"'[1]Протокол ШЭ ВОШ по предмету'!K56","v":54},{"$f":"'[1]Протокол ШЭ ВОШ по предмету'!L56","v":"Участник"},{"$f":"'[1]Протокол ШЭ ВОШ по предмету'!M56","v":"нет"},{"$f":"'[1]Протокол ШЭ ВОШ по предмету'!N56","v":"Хайруллина Лилия Аркадьевна"},"Муниципальное бюджетное общеобразовательное учреждение \"КСОШ №2\" НМР Республики Татарстан"]
[25,{"$f":"'[1]Протокол ШЭ ВОШ по предмету'!B57","v":"Ислямова"},{"$f":"'[1]Протокол ШЭ ВОШ по предмету'!C57","v":"Зарина"},{"$f":"'[1]Протокол ШЭ ВОШ по предмету'!D57","v":"Марселевна"},{"$f":"'[1]Протокол ШЭ ВОШ по предмету'!E57","v":"2010-04-29"},"Ж",{"$f":"'[1]Протокол ШЭ ВОШ по предмету'!G57","v":"нет"},{"$f":"'[1]Протокол ШЭ ВОШ по предмету'!H57","v":6},{"$f":"'[1]Протокол ШЭ ВОШ по предмету'!I57","v":6},20,{"$f":"'[1]Протокол ШЭ ВОШ по предмету'!K57","v":54},{"$f":"'[1]Протокол ШЭ ВОШ по предмету'!L57","v":"Участник"},{"$f":"'[1]Протокол ШЭ ВОШ по предмету'!M57","v":"нет"},{"$f":"'[1]Протокол ШЭ ВОШ по предмету'!N57","v":"Хайруллина Лилия Аркадьевна"},"Муниципальное бюджетное общеобразовательное учреждение \"КСОШ №2\" НМР Республики Татарстан"]
[26,{"$f":"'[1]Протокол ШЭ ВОШ по предмету'!B58","v":"Бурмистрова"},{"$f":"'[1]Протокол ШЭ ВОШ по предмету'!C58","v":"Асель"},{"$f":"'[1]Протокол ШЭ ВОШ по предмету'!D58","v":"Артуровна"},{"$f":"'[1]Протокол ШЭ ВОШ по предмету'!E58","v":"2010-07-23"},"Ж",{"$f":"'[1]Протокол ШЭ ВОШ по предмету'!G58","v":"нет"},{"$f":"'[1]Протокол ШЭ ВОШ по предмету'!H58","v":6},{"$f":"'[1]Протокол ШЭ ВОШ по предмету'!I58","v":6},14,{"$f":"'[1]Протокол ШЭ ВОШ по предмету'!K58","v":54},{"$f":"'[1]Протокол ШЭ ВОШ по предмету'!L58","v":"Участник"},{"$f":"'[1]Протокол ШЭ ВОШ по предмету'!M58","v":"нет"},{"$f":"'[1]Протокол ШЭ ВОШ по предмету'!N58","v":"Хайруллина Лилия Аркадьевна"},"Муниципальное бюджетное общеобразовательное учреждение \"КСОШ №2\" НМР Республики Татарстан"]
[27,{"$f":"'[1]Протокол ШЭ ВОШ по предмету'!B59","v":"Лутфуллина"},{"$f":"'[1]Протокол ШЭ ВОШ по предмету'!C59","v":"Луиза"},{"$f":"'[1]Протокол ШЭ ВОШ по предмету'!D59","v":"Шамилевна"},{"$f":"'[1]Протокол ШЭ ВОШ по предмету'!E59","v":"2009-11-27"},"Ж",{"$f":"'[1]Протокол ШЭ ВОШ по предмету'!G59","v":"нет"},{"$f":"'[1]Протокол ШЭ ВОШ по предмету'!H59","v":6},{"$f":"'[1]Протокол ШЭ ВОШ по предмету'!I59","v":6},23,{"$f":"'[1]Протокол ШЭ ВОШ по предмету'!K59","v":54},{"$f":"'[1]Протокол ШЭ ВОШ по предмету'!L59","v":"Участник"},{"$f":"'[1]Протокол ШЭ ВОШ по предмету'!M59","v":"нет"},{"$f":"'[1]Протокол ШЭ ВОШ по предмету'!N59","v":"Хайруллина Лилия Аркадьевна"},"Муниципальное бюджетное общеобразовательное учреждение \"КСОШ №2\" НМР Республики Татарстан"]
[28,"Казаков",{"$f":"'[1]Протокол ШЭ ВОШ по предмету'!C60","v":"Радмир"},{"$f":"'[1]Протокол ШЭ ВОШ по предмету'!D60","v":"Сергеевич"},{"$f":"'[1]Протокол ШЭ ВОШ по предмету'!E60","v":"2010-01-17"},"М",{"$f":"'[1]Протокол ШЭ ВОШ по предмету'!G60","v":"нет"},{"$f":"'[1]Протокол ШЭ ВОШ по предмету'!H60","v":6},{"$f":"'[1]Протокол ШЭ ВОШ по предмету'!I60","v":6},12,{"$f":"'[1]Протокол ШЭ ВОШ по предмету'!K60","v":54},{"$f":"'[1]Протокол ШЭ ВОШ по предмету'!L60","v":"Участник"},{"$f":"'[1]Протокол ШЭ ВОШ по предмету'!M60","v":"нет"},{"$f":"'[1]Протокол ШЭ ВОШ по предмету'!N60","v":"Хайруллина Лилия Аркадьевна"},"Муниципальное бюджетное общеобразовательное учреждение \"КСОШ №2\" НМР Республики Татарстан"]
[29,"Габидуллин","Тимур","Рафикович","       19.11.2008","М","нет",7,7,10.5,58,"Участник","нет","Ибрагимова Земфира Кутдусовна","Муниципальное бюджетное общеобразовательное учреждение \"КСОШ №2\" НМР Республики Татарстан"]
[30,"Умарова ","Амалия","Маратовна","2009-11-13","Ж","нет",7,7,20,58,"Участник","нет","Хайруллина Лилия Аркадьевна","Муниципальное бюджетное общеобразовательное учреждение \"КСОШ №2\" НМР Республики Татарстан"]
[31,"Хабибулин  "," Радмир","Гарифулаевич","2008-12-28","М","нет",7,7,18,58,"Участник","нет","Ибрагимова Земфира Кутдусовна","Муниципальное бюджетное общеобразовательное учреждение \"КСОШ №2\" НМР Республики Татарстан"]
[32,"Рыдаев ","Данил","Максимович","2008-12-24","М","нет",7,7,12,58,"Участник","нет","Ибрагимова Земфира Кутдусовна","Муниципальное бюджетное общеобразовательное учреждение \"КСОШ №2\" НМР Республики Татарстан"]
[33,"Запивахин","Александр","Александрович","2009-07-26","М","нет",7,7,11,58,"Участник","нет","Ибрагимова Земфира Кутдусовна","Муниципальное бюджетное общеобразовательное учреждение \"КСОШ №2\" НМР Республики Татарстан"]
[34,"Исаева","Татьяна","Александровна","2009-03-14","Ж","нет",7,7,9,58,"Участник","нет","Ибрагимова Земфира Кутдусовна","Муниципальное бюджетное общеобразовательное учреждение \"КСОШ №2\" НМР Республики Татарстан"]
[35,"Бакланов","Сергей","Олегович","2009-05-17","М","нет",7,7,14,58,"Участник","нет","Хайруллина Лилия Аркадьевна","Муниципальное бюджетное общеобразовательное учреждение \"КСОШ №2\" НМР Республики Татарстан"]
[36,"Кострулина","Арина","Сергеевна","2009-03-21","Ж","нет",7,7,13,58,"Участник","нет","Хайруллина Лилия Аркадьевна","Муниципальное бюджетное общеобразовательное учреждение \"КСОШ №2\" НМР Республики Татарстан"]
[37,"Казакова","Анастасия","Евгеньевна","2009-04-08","Ж","нет",7,7,16,58,"Участник","нет","Хайруллина Лилия Аркадьевна","Муниципальное бюджетное общеобразовательное учреждение \"КСОШ №2\" НМР Республики Татарстан"]
[38,"Бариев","Рамазан","Шамсуддинович","2009-03-31","М","нет",7,7,19,58,"Участник","нет","Хайруллина Лилия Аркадьевна","Муниципальное бюджетное общеобразовательное учреждение \"КСОШ №2\" НМР Республики Татарстан"]
[39,"Елизарова","Виктория","Мксимовна","2009-08-04","Ж","нет",7,7,15,58,"Участник","нет","Хайруллина Лилия Аркадьевна","Муниципальное бюджетное общеобразовательное учреждение \"КСОШ №2\" НМР Республики Татарстан"]
[40,"Косс","Савелий","Викторович","2008-11-17","М","нет",7,7,12,58,"Участник","нет","Хайруллина Лилия Аркадьевна","Муниципальное бюджетное общеобразовательное учреждение \"КСОШ №2\" НМР Республики Татарстан"]
[41,"Астахова ","Эмилия","Денисовна","2009-03-15","Ж","нет",7,7,10,58,"Участник","нет","Ибрагимова Земфира Кутдусовна","Муниципальное бюджетное общеобразовательное учреждение \"КСОШ №2\" НМР Республики Татарстан"]
[42,"Егорова ","Виталина","Романовна","2009-10-31","Ж","нет",7,7,21,58,"Участник","нет","Ибрагимова Земфира Кутдусовна","Муниципальное бюджетное общеобразовательное учреждение \"КСОШ №2\" НМР Республики Татарстан"]
[43,"Сабитова ","Эльвира","Фидаисовна","2009-08-26","Ж","нет",7,7,17,58,"Участник","нет","Ибрагимова Земфира Кутдусовна","Муниципальное бюджетное общеобразовательное учреждение \"КСОШ №2\" НМР Республики Татарстан"]
[44,"Радиков","Данил","Сергеевич","2009-12-30","М","нет",7,7,13,58,"Участник","нет","Хайруллина Лилия Аркадьевна","Муниципальное бюджетное общеобразовательное учреждение \"КСОШ №2\" НМР Республики Татарстан"]
[45,"Чадулина ","Александра","Ивановна","2009-02-04","Ж","нет",7,7,16,58,"победитель","нет","Хайруллина Лилия Аркадьевна","Муниципальное бюджетное общеобразовательное учреждение \"КСОШ №2\" НМР Республики Татарстан"]
[46,"Моторина","Каралина","Денисовна","2009-05-21","Ж","нет",7,7,20,58,"Участник","нет","Хайруллина Лилия Аркадьевна","Муниципальное бюджетное общеобразовательное учреждение \"КСОШ №2\" НМР Республики Татарстан"]
[47,"Лысов ","Олег","Александрович","2009-02-23","М","нет",7,7,21,58,"Участник","нет","Хайруллина Лилия Аркадьевна","Муниципальное бюджетное общеобразовательное учреждение \"КСОШ №2\" НМР Республики Татарстан"]
[48,"Дормидонтова","Кира","Сергеевна","2009-08-11","Ж","нет",7,7,17,58,"Участник","нет","Хайруллина Лилия Аркадьевна","Муниципальное бюджетное общеобразовательное учреждение \"КСОШ №2\" НМР Республики Татарстан"]
[49,"Заболонская","Ксения","Сергеевна","2009-06-21","Ж","нет",7,7,11,58,"Участник","нет","Хайруллина Лилия Аркадьевна","Муниципальное бюджетное общеобразовательное учреждение \"КСОШ №2\" НМР Республики Татарстан"]
[50,"Зеленова","Аделина","Витальевна","2008-12-12","Ж","нет",7,7,9,58,"Участник","нет","Хайруллина Лилия Аркадьевна","Муниципальное бюджетное общеобразовательное учреждение \"КСОШ №2\" НМР Республики Татарстан"]
[51,"Косс","Маргарита","Сергеевна","2008-01-14","Ж","нет",8,8,10,78,"Участник","нет","Ибрагимова Земфира Кутдусовна","Муниципальное бюджетное общеобразовательное учреждение \"КСОШ №2\" НМР Республики Татарстан"]
[52,"Пахомова","Мария","Александровна","2007-11-07","Ж","нет",8,8,11,78,"Участник","нет","Ибрагимова Земфира Кутдусовна","Муниципальное бюджетное общеобразовательное учреждение \"КСОШ №2\" НМР Республики Татарстан"]
[53,"Костицын","Виталий","Анатольевич","2008-09-27","М","нет",8,8,8,78,"Участник","нет","Хайруллина Лилия Аркадьевна","Муниципальное бюджетное общеобразовательное учреждение \"КСОШ №2\" НМР Республики Татарстан"]
[54,"Баев","Григорий","Алексеевич","2008-11-07","М","нет",8,8,10,78,"Участник","нет","Хайруллина Лилия Аркадьевна","Муниципальное бюджетное общеобразовательное учреждение \"КСОШ №2\" НМР Республики Татарстан"]
[55,"Журавлёв","Роман","Максимович","2008-08-25","М","нет",8,8,13,78,"Участник","нет","Хайруллина Лилия Аркадьевна","Муниципальное бюджетное общеобразовательное учреждение \"КСОШ №2\" НМР Республики Татарстан"]
[56,"Хафизов","Данил","Денисович","2007-12-27","М","нет",8,8,17,78,"Участник","нет","Хайруллина Лилия Аркадьевна","Муниципальное бюджетное общеобразовательное учреждение \"КСОШ №2\" НМР Республики Татарстан"]
[57,"Кручинина","Владлена","Николаевна","2008-02-16","Ж","нет",8,8,21,78,"Участник","нет","Хайруллина Лилия Аркадьевна","Муниципальное бюджетное общеобразовательное учреждение \"КСОШ №2\" НМР Республики Татарстан"]
[58,"Иванов ","Никита","Александрович","2008-07-04","М","нет",8,8,13,78,"Участник","нет","Хайруллина Лилия Аркадьевна","Муниципальное бюджетное общеобразовательное учреждение \"КСОШ №2\" НМР Республики Татарстан"]
[59,"Чугуев","Даниил","Тимофеевич","2008-07-18","М","нет",8,8,12,78,"Участник","нет","Хайруллина Лилия Аркадьевна","Муниципальное бюджетное общеобразовательное учреждение \"КСОШ №2\" НМР Республики Татарстан"]
[60,"Крымов","Владислав","Артемович","2008-05-13","М","нет",8,8,14,78,"Участник","нет","Хайруллина Лилия Аркадьевна","Муниципальное бюджетное общеобразовательное учреждение \"КСОШ №2\" НМР Республики Татарстан"]
[61,"Реброва","Анна","Ивановна","2008-08-26","Ж","нет",8,8,20,78,"Участник","нет","Хайруллина Лилия Аркадьевна","Муниципальное бюджетное общеобразовательное учреждение \"КСОШ №2\" НМР Республики Татарстан"]
[62,"Николашина","Дарья","Сергеевна","2008-08-23","Ж","нет",8,8,50,78,"победитель","нет","Хайруллина Лилия Аркадьевна","Муниципальное бюджетное общеобразовательное учреждение \"КСОШ №2\" НМР Республики Татарстан"]
[63,"Мокшина","Дарина","Андреевна","2008-01-28","Ж","нет",8,8,41,78,"призёр","нет","Хайруллина Лилия Аркадьевна","Муниципальное бюджетное общеобразовательное учреждение \"КСОШ №2\" НМР Республики Татарстан"]
[64,{"$f":"'[1]Протокол ШЭ ВОШ по предмету'!B37","v":"Зимулюкина"},{"$f":"'[1]Протокол ШЭ ВОШ по предмету'!C37","v":"Надежда"},{"$f":"'[1]Протокол ШЭ ВОШ по предмету'!D37","v":"Вячеславовна"},"2007-03-26","Ж",{"$f":"'[1]Протокол ШЭ ВОШ по предмету'!G37","v":"нет"},{"$f":"'[1]Протокол ШЭ ВОШ по предмету'!H37","v":9},{"$f":"'[1]Протокол ШЭ ВОШ по предмету'!I37","v":9},45,{"$f":"'[1]Протокол ШЭ ВОШ по предмету'!K37","v":86},"призер",{"$f":"'[1]Протокол ШЭ ВОШ по предмету'!M37","v":"нет"},{"$f":"'[1]Протокол ШЭ ВОШ по предмету'!N37","v":"Хайруллина Лилия Аркадьевна"},"Муниципальное бюджетное общеобразовательное учреждение \"КСОШ №2\" НМР Республики Татарстан"]
[65,{"$f":"'[1]Протокол ШЭ ВОШ по предмету'!B38","v":"Зубарева "},{"$f":"'[1]Протокол ШЭ ВОШ по предмету'!C38","v":"Диана"},{"$f":"'[1]Протокол ШЭ ВОШ по предмету'!D38","v":"Александровна"},"2007-03-31","Ж",{"$f":"'[1]Протокол ШЭ ВОШ по предмету'!G38","v":"нет"},{"$f":"'[1]Протокол ШЭ ВОШ по предмету'!H38","v":9},{"$f":"'[1]Протокол ШЭ ВОШ по предмету'!I38","v":9},50,{"$f":"'[1]Протокол ШЭ ВОШ по предмету'!K38","v":86},"призер",{"$f":"'[1]Протокол ШЭ ВОШ по предмету'!M38","v":"нет"},{"$f":"'[1]Протокол ШЭ ВОШ по предмету'!N38","v":"Хайруллина Лилия Аркадьевна"},"Муниципальное бюджетное общеобразовательное учреждение \"КСОШ №2\" НМР Республики Татарстан"]
[66,{"$f":"'[1]Протокол ШЭ ВОШ по предмету'!B39","v":"Степанова "},{"$f":"'[1]Протокол ШЭ ВОШ по предмету'!C39","v":"Арина"},{"$f":"'[1]Протокол ШЭ ВОШ по предмету'!D39","v":"Сергеевна"},"2007-06-27","Ж",{"$f":"'[1]Протокол ШЭ ВОШ по предмету'!G39","v":"нет"},{"$f":"'[1]Протокол ШЭ ВОШ по предмету'!H39","v":9},{"$f":"'[1]Протокол ШЭ ВОШ по предмету'!I39","v":9},67,{"$f":"'[1]Протокол ШЭ ВОШ по предмету'!K39","v":86},"победитель",{"$f":"'[1]Протокол ШЭ ВОШ по предмету'!M39","v":"нет"},{"$f":"'[1]Протокол ШЭ ВОШ по предмету'!N39","v":"Хайруллина Лилия Аркадьевна"},"Муниципальное бюджетное общеобразовательное учреждение \"КСОШ №2\" НМР Республики Татарстан"]
[67,{"$f":"'[1]Протокол ШЭ ВОШ по предмету'!B40","v":"Николаев"},{"$f":"'[1]Протокол ШЭ ВОШ по предмету'!C40","v":"Владислав"},{"$f":"'[1]Протокол ШЭ ВОШ по предмету'!D40","v":"Андреевич"},"2007-09-02","М",{"$f":"'[1]Протокол ШЭ ВОШ по предмету'!G40","v":"нет"},{"$f":"'[1]Протокол ШЭ ВОШ по предмету'!H40","v":9},{"$f":"'[1]Протокол ШЭ ВОШ по предмету'!I40","v":9},26,{"$f":"'[1]Протокол ШЭ ВОШ по предмету'!K40","v":86},{"$f":"'[1]Протокол ШЭ ВОШ по предмету'!L40","v":"Участник"},{"$f":"'[1]Протокол ШЭ ВОШ по предмету'!M40","v":"нет"},{"$f":"'[1]Протокол ШЭ ВОШ по предмету'!N40","v":"Хайруллина Лилия Аркадьевна"},"Муниципальное бюджетное общеобразовательное учреждение \"КСОШ №2\" НМР Республики Татарстан"]
[68,{"$f":"'[1]Протокол ШЭ ВОШ по предмету'!B41","v":"Низамиев"},{"$f":"'[1]Протокол ШЭ ВОШ по предмету'!C41","v":"Тамирлан"},{"$f":"'[1]Протокол ШЭ ВОШ по предмету'!D41","v":"Газинурович"},"2007-02-23","М",{"$f":"'[1]Протокол ШЭ ВОШ по предмету'!G41","v":"нет"},{"$f":"'[1]Протокол ШЭ ВОШ по предмету'!H41","v":9},{"$f":"'[1]Протокол ШЭ ВОШ по предмету'!I41","v":9},31,{"$f":"'[1]Протокол ШЭ ВОШ по предмету'!K41","v":86},{"$f":"'[1]Протокол ШЭ ВОШ по предмету'!L41","v":"Участник"},{"$f":"'[1]Протокол ШЭ ВОШ по предмету'!M41","v":"нет"},{"$f":"'[1]Протокол ШЭ ВОШ по предмету'!N41","v":"Хайруллина Лилия Аркадьевна"},"Муниципальное бюджетное общеобразовательное учреждение \"КСОШ №2\" НМР Республики Татарстан"]
[69,{"$f":"'[1]Протокол ШЭ ВОШ по предмету'!B42","v":"Кильдюшев"},{"$f":"'[1]Протокол ШЭ ВОШ по предмету'!C42","v":"Ярослав"},{"$f":"'[1]Протокол ШЭ ВОШ по предмету'!D42","v":"Александрович"},"2007-06-17","М",{"$f":"'[1]Протокол ШЭ ВОШ по предмету'!G42","v":"нет"},{"$f":"'[1]Протокол ШЭ ВОШ по предмету'!H42","v":9},{"$f":"'[1]Протокол ШЭ ВОШ по предмету'!I42","v":9},28,{"$f":"'[1]Протокол ШЭ ВОШ по предмету'!K42","v":86},{"$f":"'[1]Протокол ШЭ ВОШ по предмету'!L42","v":"Участник"},{"$f":"'[1]Протокол ШЭ ВОШ по предмету'!M42","v":"нет"},{"$f":"'[1]Протокол ШЭ ВОШ по предмету'!N42","v":"Хайруллина Лилия Аркадьевна"},"Муниципальное бюджетное общеобразовательное учреждение \"КСОШ №2\" НМР Республики Татарстан"]
[70,{"$f":"'[1]Протокол ШЭ ВОШ по предмету'!B43","v":"Сычева "},{"$f":"'[1]Протокол ШЭ ВОШ по предмету'!C43","v":"Ирина"},{"$f":"'[1]Протокол ШЭ ВОШ по предмету'!D43","v":" Юрьевна"},"2007-06-15","Ж",{"$f":"'[1]Протокол ШЭ ВОШ по предмету'!G43","v":"нет"},{"$f":"'[1]Протокол ШЭ ВОШ по предмету'!H43","v":9},{"$f":"'[1]Протокол ШЭ ВОШ по предмету'!I43","v":9},19,{"$f":"'[1]Протокол ШЭ ВОШ по предмету'!K43","v":86},{"$f":"'[1]Протокол ШЭ ВОШ по предмету'!L43","v":"Участник"},{"$f":"'[1]Протокол ШЭ ВОШ по предмету'!M43","v":"нет"},{"$f":"'[1]Протокол ШЭ ВОШ по предмету'!N43","v":"Хайруллина Лилия Аркадьевна"},"Муниципальное бюджетное общеобразовательное учреждение \"КСОШ №2\" НМР Республики Татарстан"]
[71,"Башмакова","Инна","Сергеевна","2007-08-16","Ж","нет",9,9,44,86,"Призер","нет","Хусаинова Энже Абрамовна","Муниципальное бюджетное общеобразовательное учреждение \"КСОШ №2\" НМР Республики Татарстан"]
[72,"Плетнев","Никита","Игоревич","2007-10-02","М","нет",9,9,21,86,{"$f":"'[1]Протокол ШЭ ВОШ по предмету'!L45","v":"Участник"},"нет","Хусаинова Энже Абрамовна","Муниципальное бюджетное общеобразовательное учреждение \"КСОШ №2\" НМР Республики Татарстан"]
[73,"Сидорова","Софья","Александровна","2007-06-12","Ж","нет",9,9,39,86,"Участник","нет","Гараева Магинур Абрамовна","Муниципальное бюджетное общеобразовательное учреждение \"КСОШ №2\" НМР Республики Татарстан"]
[74,"Лазутина","Ксения","Олеговна","2007-02-20","Ж","нет",9,9,45,86,"Призер","нет","Гараева Магинур Абрамовна","Муниципальное бюджетное общеобразовательное учреждение \"КСОШ №2\" НМР Республики Татарстан"]